bitfinex/quotes_ETHUSD_20250511
["timestamp","ask_amount","ask_price","bid_price","bid_amount"]
[1746927803258,8.0,2540.8,2540.0,0.2105]
[1746927803647,3.93685287,2540.1,2540.0,0.2105]
[1746927803843,5.31943087,2540.7,2539.8,3.246]
[1746927804037,3.93631168,2540.5,2539.8,3.246]
[1746927804667,3.93563956,2540.9,2539.8,3.246]
[1746927804983,0.7628,2541.1,2540.0,0.24987015]
[1746927805285,3.93535209,2541.1,2540.1,3.247]
[1746927805443,3.93535209,2541.1,2540.2,0.5784985]
[1746927805645,3.9354754,2541.0,2540.2,0.5784985]
[1746927805844,11.93538519,2541.1,2540.2,0.5784985]
[1746927806067,3.183,2541.2,2540.2,0.5784985]
[1746927806258,3.179,2541.4,2540.3,0.38254985]
[1746927806457,3.93547715,2541.0,2540.2,0.2105]
[1746927806747,3.9354617,2541.0,2540.2,0.2105]
[1746927806947,8.0,2541.3,2540.2,0.2105]
[1746927807170,11.93513127,2541.3,2540.2,0.2105]
[1746927807378,3.93564188,2540.9,2540.2,0.2105]
[1746927807564,3.9356713,2540.9,2540.2,0.2105]
[1746927807763,3.93579233,2540.8,2540.2,0.2105]
[1746927807950,3.93613584,2540.6,2540.2,0.2105]
[1746927808158,3.93577833,2540.8,2540.3,3.247]
[1746927808363,3.93591376,2540.8,2540.3,3.247]
[1746927808564,3.93629414,2540.5,2540.3,3.247]
[1746927809174,3.93623302,2540.5,2540.2,0.2105]
[1746927809485,0.3936233,2540.4,2540.0,3.247]
[1746927809685,3.93665487,2540.3,2540.0,3.247]
[1746927809892,3.93671301,2540.2,2540.0,3.247]
[1746927810480,0.3936233,2540.4,2540.0,3.247]
[1746927810790,3.93679578,2540.2,2540.0,3.247]
[1746927811092,0.3936233,2540.4,2540.0,3.247]
[1746927811392,3.93660031,2540.3,2540.0,3.247]
[1746927811694,0.8131,2541.1,2540.0,3.247]
[1746927811893,3.93551114,2541.0,2540.1,0.2105]
[1746927812190,3.158,2541.3,2540.2,0.03936317]
[1746927812389,3.93477256,2541.5,2540.3,0.2105]
[1746927812567,8.47643087,2541.9,2540.5,0.2105]
[1746927812568,3.93454169,2541.6,2540.5,0.2105]
[1746927812769,0.78687901,2541.6,2540.5,3.3675]
[1746927812989,8.0,2541.8,2540.6,0.2105]
[1746927813306,3.93516201,2541.2,2540.7,3.247]
[1746927813887,8.47643087,2541.9,2540.7,3.247]
[1746927813888,3.9349981,2541.3,2540.7,3.247]
[1746927814396,3.9349981,2541.3,2540.6,0.2105]
[1746927814397,3.93530124,2541.2,2540.8,3.247]
[1746927814558,3.93534956,2541.1,2540.8,3.247]
[1746927815091,3.93551103,2541.0,2540.8,3.247]
[1746927815291,3.93536153,2541.1,2540.7,3.247]
[1746927815798,3.93570125,2540.9,2540.7,3.247]
[1746927815972,3.93571911,2540.9,2540.7,3.247]
[1746927816691,0.8131,2541.3,2540.7,3.247]
[1746927817071,3.93537093,2541.1,2540.7,3.247]
[1746927817471,3.93519142,2541.2,2540.7,3.247]
[1746927817655,3.93538057,2541.1,2540.7,3.247]
[1746927817858,3.9354184,2541.1,2540.7,3.247]
[1746927818099,3.93546321,2541.0,2540.7,3.247]
[1746927818286,3.93538357,2541.1,2540.7,3.247]
[1746927818593,7.51896303,2541.4,2540.7,3.247]
[1746927818799,3.93542131,2541.1,2540.7,3.247]
[1746927818963,3.93551242,2541.0,2540.7,3.247]
[1746927819163,3.93521002,2541.2,2540.7,3.247]
[1746927819364,3.93531922,2541.1,2540.7,3.247]
[1746927819698,3.93563923,2540.9,2540.7,3.247]
[1746927819857,8.66778921,2541.4,2540.7,3.247]
[1746927819858,3.9349939,2541.3,2540.7,3.247]
[1746927820061,3.93457626,2541.6,2540.7,3.59275]
[1746927820256,3.9344056,2541.7,2540.9,0.2105]
[1746927820561,3.93492099,2541.4,2540.9,0.2105]
[1746927820762,3.93474799,2541.5,2540.9,0.2105]
[1746927820991,3.9345963,2541.6,2540.9,0.2105]
[1746927821476,10.0,2543.2,2541.1,0.7605]
[1746927821696,3.93272831,2542.8,2541.4,0.55]
[1746927821862,10.0,2543.2,2541.7,0.2105]
[1746927822203,3.93289581,2542.7,2541.9,0.2105]
[1746927822363,3.9330152,2542.6,2541.9,0.2105]
[1746927822561,11.93269012,2542.8,2541.9,0.2105]
[1746927822762,1.55168105,2542.7,2541.9,0.2105]
[1746927822985,5.484529,2542.7,2541.9,0.2105]
[1746927823187,3.93257082,2542.9,2541.9,0.24983553]
[1746927823394,3.58412036,2543.2,2541.9,8.0]
[1746927823664,3.93244437,2543.0,2542.0,0.2105]
[1746927823902,0.7856,2543.6,2542.1,0.2105]
[1746927824202,3.93047532,2544.3,2542.4,0.55]
[1746927824203,3.93081761,2544.0,2542.4,0.55]
[1746927824511,3.93133561,2543.7,2542.7,0.2105]
[1746927824661,8.0,2543.9,2542.7,0.2105]
[1746927824865,3.93190057,2543.3,2542.7,0.2105]
[1746927825082,3.93179443,2543.4,2542.8,3.12]
[1746927825606,3.58412036,2543.8,2542.8,3.12]
[1746927825607,3.58412036,2543.8,2542.9,0.03932378]
[1746927825760,3.93115399,2543.8,2543.0,0.2105]
[1746927826277,3.58412036,2543.9,2543.0,0.2105]
[1746927826477,3.93154443,2543.6,2543.0,0.2105]
[1746927827103,3.93122065,2543.8,2543.0,0.2105]
[1746927827307,0.7515341,2543.8,2543.0,0.2105]
[1746927827467,3.93213622,2543.2,2543.1,3.119]
[1746927827769,3.58412036,2543.9,2543.1,3.119]
[1746927828165,3.93189559,2543.4,2543.1,3.119]
[1746927828361,3.93112666,2543.8,2543.1,3.119]
[1746927828564,3.93170814,2543.5,2543.1,3.119]
[1746927828788,3.9317449,2543.4,2543.1,3.119]
[1746927829413,3.58412036,2543.9,2543.0,0.51082533]
[1746927829714,3.93122283,2543.8,2543.2,3.119]
[1746927830067,7.04585845,2544.0,2543.2,3.48591469]
[1746927830068,3.93081761,2544.0,2543.2,3.48591469]
[1746927830415,3.93082496,2544.0,2543.3,0.2105]
[1746927830566,7.51452096,2544.3,2543.3,0.2105]
[1746927830769,3.93113076,2543.8,2543.5,0.2105]
[1746927830988,3.9312812,2543.7,2543.6,3.119]
[1746927831200,3.93119187,2543.8,2543.6,3.119]
[1746927831498,3.58412036,2544.0,2543.6,3.119]
[1746927831667,3.93068294,2544.1,2543.6,3.119]
[1746927831862,11.58412036,2544.4,2543.6,3.119]
[1746927832074,7.51444512,2544.4,2543.6,3.119]
[1746927832299,3.93075476,2544.1,2543.7,3.119]
[1746927832668,3.93082212,2544.0,2543.7,3.119]
[1746927832864,3.93112666,2543.8,2543.7,3.119]
[1746927834328,3.93154804,2543.6,2543.3,3.118]
[1746927834491,3.93154804,2543.6,2543.2,0.2105]
[1746927834831,3.93154804,2543.6,2543.3,3.118]
[1746927834987,3.93143647,2543.6,2543.3,3.118]
[1746927835496,3.93069272,2544.1,2543.3,3.45085]
[1746927835697,3.93106369,2543.9,2543.3,3.45085]
[1746927836424,7.51434806,2544.4,2543.3,3.45085]
[1746927836588,3.93119942,2543.8,2543.3,3.118]
[1746927836789,8.0,2544.3,2543.3,3.118]
[1746927837189,3.93142375,2543.7,2543.4,3.118]
[1746927837403,3.9312812,2543.7,2543.4,3.118]
[1746927837609,3.93153682,2543.6,2543.5,3.118]
[1746927838833,0.78628279,2543.6,2543.2,3.3285]
[1746927839144,3.9318995,2543.3,2543.2,3.118]
[1746927839707,3.93167838,2543.5,2543.2,3.118]
[1746927839918,3.93179694,2543.4,2543.2,3.118]
[1746927840522,3.9318995,2543.3,2543.2,3.118]
[1746927843151,7.51534169,2543.8,2543.0,3.118]
[1746927843446,3.93170958,2543.5,2543.0,3.118]
[1746927843685,3.93170958,2543.5,2543.0,3.48074012]
[1746927844151,3.58412036,2543.8,2543.1,0.03931991]
[1746927844353,3.93108428,2543.9,2543.2,0.2105]
[1746927844656,3.93123939,2543.8,2543.2,0.2105]
[1746927845531,3.92888516,2545.3,2543.3,0.03931389]
[1746927845869,3.92888516,2545.3,2543.6,0.2105]
[1746927845870,3.92982242,2544.7,2543.6,0.2105]
[1746927846170,0.8178,2545.2,2543.8,0.2105]
[1746927846474,3.92985415,2544.7,2544.0,0.2105]
[1746927846765,3.92985415,2544.7,2544.1,0.03930154]
[1746927846934,3.92965764,2544.8,2544.1,0.03930154]
[1746927847134,0.8178,2545.2,2544.1,0.03930154]
[1746927847135,3.92975482,2544.7,2544.1,0.03930154]
[1746927847370,3.92964189,2544.8,2544.1,0.03930154]
[1746927847670,3.92970975,2544.8,2544.0,0.2105]
[1746927847965,3.061,2545.3,2544.1,0.24979908]
[1746927848169,3.92951927,2544.9,2544.1,0.58067899]
[1746927848472,3.58412036,2545.0,2544.2,3.117]
[1746927848700,3.93000837,2544.6,2544.2,3.117]
[1746927848842,8.0,2544.7,2544.2,3.117]
[1746927849044,3.93028494,2544.4,2544.2,3.117]
[1746927849233,8.0,2544.7,2544.3,3.117]
[1746927849569,3.929939,2544.6,2544.3,3.117]
[1746927849768,11.58412036,2545.0,2544.3,3.117]
[1746927849983,1.91181204,2544.9,2544.1,3.3275]
[1746927850157,3.92945087,2544.9,2544.1,3.3275]
[1746927850480,3.92951862,2544.9,2544.2,0.03930308]
[1746927851078,3.92934975,2545.0,2544.2,0.03930308]
[1746927851248,3.92946963,2544.9,2544.2,0.03930308]
[1746927851448,3.92991057,2544.6,2544.2,0.03930308]
[1746927851658,0.55,2545.2,2544.1,0.2105]
[1746927851857,3.92972301,2544.8,2544.2,3.054]
[1746927852063,3.92958497,2544.8,2544.2,3.09330263]
[1746927852656,3.054,2545.4,2544.3,0.2105]
[1746927852856,3.92911405,2545.2,2544.5,0.2105]
[1746927853083,3.92884684,2545.3,2544.5,0.2105]
[1746927853283,3.92865561,2545.4,2544.5,0.2105]
[1746927853583,3.92916728,2545.1,2544.5,0.2105]
[1746927853888,14.97459578,2545.5,2544.5,0.2105]
[1746927854058,3.92869558,2545.4,2544.5,0.2105]
[1746927854250,3.58412036,2545.3,2544.5,0.2105]
[1746927854586,0.8024,2545.2,2544.5,0.2105]
[1746927854748,3.9297265,2544.8,2544.5,0.2105]
[1746927854949,3.92989074,2544.6,2544.4,3.053]
[1746927855156,3.93004519,2544.5,2544.4,3.053]
[1746927855982,3.9293461,2545.0,2544.4,3.053]
[1746927856282,8.0,2545.3,2544.5,0.2105]
[1746927856283,3.92912469,2545.1,2544.5,0.2105]
[1746927856845,11.58412036,2545.4,2544.5,0.2105]
[1746927857183,3.92944983,2544.9,2544.5,0.2105]
[1746927857382,11.58412036,2545.4,2544.5,0.2105]
[1746927857585,11.58412036,2545.4,2544.0,0.2105]
[1746927857586,3.58412036,2544.7,2544.0,0.2105]
[1746927857785,3.93061987,2544.2,2544.0,0.2105]
[1746927857988,3.041,2544.6,2544.0,0.2105]
[1746927858356,3.93004519,2544.5,2543.9,0.28765007]
[1746927858557,3.93077972,2544.1,2543.8,14.15]
[1746927858768,3.93068091,2544.1,2543.8,14.15]
[1746927859100,3.041,2544.6,2543.8,14.15]
[1746927859266,3.93013865,2544.5,2543.8,15.89135]
[1746927859468,6.97096888,2544.6,2543.9,0.03930578]
[1746927859785,3.93032765,2544.4,2544.0,0.2105]
[1746927859946,3.93012414,2544.5,2544.0,0.2105]
[1746927860385,6.97096008,2544.6,2544.0,0.2105]
[1746927860686,3.041,2544.6,2544.0,0.2105]
[1746927860999,11.92967813,2544.8,2544.1,0.039303]
[1746927861196,3.9297586,2544.7,2544.0,0.2105]
[1746927861365,3.032,2545.1,2544.0,0.2105]
[1746927861556,3.032,2545.1,2544.2,0.2105]
[1746927861755,4.08649608,2545.1,2544.3,3.053]
[1746927861997,3.92949314,2544.9,2544.3,3.053]
[1746927862855,3.92969493,2544.8,2544.3,3.053]
[1746927863447,3.92947841,2544.9,2544.3,3.053]
[1746927863882,3.92967108,2544.8,2544.3,3.053]
[1746927864085,3.92967108,2544.8,2544.2,0.2105]
[1746927864086,3.92984008,2544.7,2544.2,0.2105]
[1746927864384,3.92984008,2544.7,2544.4,3.053]
[1746927864681,3.92993854,2544.6,2544.4,3.053]
[1746927864869,3.92941747,2545.0,2544.4,3.053]
[1746927865077,3.92946555,2544.9,2544.4,3.053]
[1746927865280,6.96114434,2545.1,2544.4,3.053]
[1746927865462,3.92984431,2544.7,2544.4,3.053]
[1746927865660,3.92964807,2544.8,2544.4,3.053]
[1746927865863,3.92950172,2544.9,2544.4,3.053]
[1746927866066,3.92989644,2544.6,2544.4,3.053]
[1746927866380,3.92980425,2544.7,2544.4,3.053]
[1746927866574,3.92965818,2544.8,2544.4,3.053]
[1746927866884,8.0,2544.7,2543.9,3.053]
[1746927867089,3.93043022,2544.3,2543.9,3.053]
[1746927867446,3.93042013,2544.3,2543.9,3.053]
[1746927869168,3.93081761,2544.0,2543.9,3.053]
[1746927869364,3.93097212,2543.9,2543.8,14.15]
[1746927870563,0.8024,2544.2,2543.8,14.15]
[1746927870787,3.93073335,2544.1,2543.8,14.15]
[1746927870968,6.55204743,2544.6,2543.8,14.15]
[1746927871166,3.93042759,2544.3,2543.9,0.2105]
[1746927871370,3.53404743,2544.4,2543.9,0.2105]
[1746927871597,3.93043755,2544.3,2543.9,0.2105]
[1746927871965,3.9301246,2544.5,2543.9,0.2105]
[1746927872184,11.92993947,2544.6,2543.9,0.2105]
[1746927872390,3.93017648,2544.5,2543.9,0.2105]
[1746927872665,3.93022531,2544.4,2543.9,0.2105]
[1746927872960,3.93012529,2544.5,2543.9,0.2105]
[1746927873409,3.92944581,2544.9,2544.0,0.03930733]
[1746927873410,3.92954232,2544.9,2544.0,0.03930733]
[1746927873611,3.92960373,2544.8,2543.9,1.95185]
[1746927874235,11.92927308,2545.0,2543.9,1.95185]
[1746927874236,3.57324988,2544.7,2544.0,3.053]
[1746927874523,6.92374343,2544.7,2544.0,3.053]
[1746927874728,3.9301621,2544.5,2544.0,3.053]
[1746927875047,2.994,2544.7,2544.0,3.053]
[1746927875712,2.994,2544.7,2544.0,4.79435]
[1746927876311,3.92964739,2544.8,2544.0,4.79435]
[1746927876498,3.92946493,2544.9,2544.1,0.03930299]
[1746927877112,3.92959833,2544.8,2544.1,0.03930299]
[1746927877414,3.92948124,2544.9,2544.1,0.03930299]
[1746927877590,3.92960375,2544.8,2544.2,0.2105]
[1746927877921,3.92999228,2544.6,2544.2,0.2105]
[1746927878227,3.93008994,2544.5,2544.2,0.2105]
[1746927878517,3.9297785,2544.7,2544.2,3.2635]
[1746927878730,3.92983917,2544.7,2544.2,3.2635]
[1746927878954,8.0,2545.0,2544.2,3.2635]
[1746927879108,3.93021658,2544.4,2544.2,3.2635]
[1746927879613,3.93007877,2544.5,2544.2,3.2635]
[1746927879811,3.92996988,2544.6,2544.2,3.2635]
[1746927880231,3.92958189,2544.8,2544.2,3.2635]
[1746927880408,3.92952458,2544.9,2544.2,3.2635]
[1746927880612,3.92952458,2544.9,2544.2,3.58985]
[1746927881548,3.9296157,2544.8,2544.2,3.58985]
[1746927881847,3.92949297,2544.9,2544.2,3.58985]
[1746927882627,3.9296073,2544.8,2544.2,3.58985]
[1746927883050,6.55924988,2545.1,2544.2,3.2635]
[1746927883644,3.92971331,2544.8,2544.2,3.2635]
[1746927884157,3.93012224,2544.5,2544.2,3.2635]
[1746927884353,3.92946967,2544.9,2544.2,3.2635]
[1746927884647,3.92973631,2544.7,2544.2,3.2635]
[1746927884853,3.93004519,2544.5,2544.2,3.2635]
[1746927885012,3.93030934,2544.4,2544.2,3.053]
[1746927885216,3.92989074,2544.6,2544.2,3.053]
[1746927885521,3.93035412,2544.3,2544.2,3.053]
[1746927885740,3.92989074,2544.6,2544.2,3.053]
[1746927886055,3.93020187,2544.4,2544.2,3.053]
[1746927886268,3.57324988,2544.7,2544.2,3.053]
[1746927886417,3.57324988,2544.7,2543.9,0.2105]
[1746927886418,0.55980969,2544.6,2543.9,2.977]
[1746927886615,3.93076189,2544.1,2543.9,2.977]
[1746927886917,3.93061361,2544.2,2543.9,2.977]
[1746927887257,3.93145672,2543.6,2543.5,2.977]
[1746927887763,3.93127361,2543.8,2543.5,2.977]
[1746927887929,3.9313172,2543.7,2543.5,2.977]
[1746927888125,0.39313172,2543.7,2542.9,0.2105]
[1746927888464,0.77,2543.4,2542.8,17.12]
[1746927888754,4.70178618,2543.4,2542.8,17.12]
[1746927888973,4.70178618,2543.4,2542.8,2.977]
[1746927889148,9.59750361,2543.4,2542.6,0.2105]
[1746927889353,3.9326721,2542.9,2542.3,0.2105]
[1746927889554,3.93260615,2542.9,2542.3,0.2105]
[1746927889754,3.93277346,2542.8,2542.3,0.2105]
[1746927890052,0.99010718,2542.8,2542.2,2.977]
[1746927890249,3.93291146,2542.7,2542.2,2.977]
[1746927890450,3.93283508,2542.7,2542.2,2.977]
[1746927890649,3.93271678,2542.8,2542.2,2.977]
[1746927890856,3.93259365,2542.9,2542.2,2.977]
[1746927891055,3.93268989,2542.8,2542.2,2.977]
[1746927891258,6.88047651,2543.0,2542.2,2.977]
[1746927891863,2.948,2543.0,2542.2,2.977]
[1746927892080,3.93260488,2542.9,2542.2,3.29575]
[1746927892242,6.88040557,2543.0,2542.2,3.29575]
[1746927892443,6.88040557,2543.0,2542.4,0.2105]
[1746927893162,3.93252715,2542.9,2542.4,0.2105]
[1746927893477,3.93268126,2542.8,2542.4,0.2105]
[1746927893652,3.93258228,2542.9,2542.4,0.2105]
[1746927894187,3.93267264,2542.8,2542.2,2.977]
[1746927894374,3.93320908,2542.5,2542.2,2.977]
[1746927894554,3.93313751,2542.5,2542.2,2.977]
[1746927894755,3.9332979,2542.4,2542.2,2.977]
[1746927895297,3.93299668,2542.6,2542.2,2.977]
[1746927895452,3.93330292,2542.4,2542.2,2.977]
[1746927895653,3.9330309,2542.6,2542.2,2.977]
[1746927895879,3.93305178,2542.6,2542.2,2.977]
[1746927896159,3.93314245,2542.5,2542.2,2.977]
[1746927896557,0.2997607,2542.8,2542.2,3.29575]
[1746927896761,3.9328267,2542.8,2542.2,3.29575]
[1746927897675,4.22437738,2542.8,2542.2,3.29575]
[1746927897977,3.93289528,2542.7,2542.2,3.29575]
[1746927898159,3.93289528,2542.7,2542.2,2.977]
[1746927898992,3.93312498,2542.6,2542.2,2.977]
[1746927899497,3.93332194,2542.4,2542.2,2.977]
[1746927899692,3.93337386,2542.4,2542.1,0.2105]
[1746927899868,3.53938143,2542.7,2542.1,0.2105]
[1746927899869,3.93360081,2542.2,2542.1,0.2105]
[1746927900075,3.93360081,2542.2,2542.0,2.979]
[1746927900270,3.93375555,2542.1,2542.0,2.979]
[1746927900474,3.9343379,2541.8,2541.5,2.979]
[1746927900664,3.93439421,2541.7,2541.4,2.979]
[1746927900863,2.922,2541.6,2540.9,0.2105]
[1746927901198,3.53938143,2541.5,2540.9,0.2105]
[1746927901405,3.53938143,2542.1,2540.9,0.24985339]
[1746927901570,2.921,2541.6,2540.9,0.2105]
[1746927902005,2.921,2541.6,2540.9,8.2105]
[1746927902161,2.921,2541.6,2541.0,2.27559895]
[1746927902367,3.93522398,2541.2,2540.9,0.2105]
[1746927902576,3.53938143,2541.5,2540.9,0.2105]
[1746927902790,7.77066319,2541.5,2540.8,14.152]
[1746927902992,3.93586934,2540.8,2540.6,0.2105]
[1746927903194,3.93555538,2541.0,2540.6,0.2105]
[1746927903391,2.918,2541.2,2540.6,0.24985994]
[1746927903604,2.918,2541.2,2540.6,0.56991836]
[1746927903792,6.85318327,2541.2,2540.6,8.53055842]
[1746927904000,2.918,2541.2,2540.6,8.53055842]
[1746927904195,2.918,2541.2,2540.6,8.2105]
[1746927904381,6.85319541,2541.2,2540.6,8.2105]
[1746927904581,3.53938143,2541.0,2540.3,0.2105]
[1746927904787,3.93602363,2540.7,2540.3,3.1895]
[1746927905474,7.47487076,2541.0,2540.3,3.1895]
[1746927905671,7.47486982,2541.0,2540.3,3.1895]
[1746927905919,3.93618049,2540.6,2540.3,3.1895]
[1746927906073,3.93638797,2540.4,2540.3,2.979]
[1746927906407,3.93672593,2540.2,2539.9,0.2105]
[1746927906777,7.4757694,2540.4,2539.9,0.2105]
[1746927906778,3.53938143,2540.4,2539.9,0.2105]
[1746927907208,2.938,2540.6,2539.9,0.2105]
[1746927907791,3.93662895,2540.3,2539.9,0.2105]
[1746927908527,3.58586623,2540.2,2539.6,0.2105]
[1746927908694,3.58586623,2540.2,2538.8,14.16]
[1746927908695,3.93801464,2539.4,2538.9,0.2105]
[1746927908909,8.0,2539.5,2538.9,0.17]
[1746927909231,10.45356948,2539.6,2538.3,0.20530025]
[1746927909232,8.0,2538.9,2538.3,0.20530025]
[1746927909381,8.0,2538.7,2537.8,14.3705]
[1746927909577,8.0,2538.3,2537.8,14.3705]
[1746927909821,3.93955536,2538.4,2537.8,14.3705]
[1746927909822,8.0,2538.4,2537.8,14.3705]
[1746927909981,3.93933425,2538.5,2537.8,14.3705]
[1746927910185,8.0,2538.4,2537.9,0.50461577]
[1746927910493,4.34236623,2538.4,2537.6,2.981]
[1746927910682,2.933,2538.8,2537.6,2.981]
[1746927910683,0.7565,2538.8,2537.6,2.981]
[1746927910877,8.0,2538.9,2537.7,0.2499026]
[1746927911118,3.58586623,2539.6,2537.8,0.2105]
[1746927911301,3.58586623,2539.6,2537.7,8.0]
[1746927911302,8.0,2539.0,2538.0,0.2105]
[1746927911520,3.9388272,2538.9,2538.0,0.2105]
[1746927911725,0.28788594,2539.0,2538.0,0.2105]
[1746927911901,3.93917907,2538.6,2538.0,0.2105]
[1746927912106,3.58586623,2538.7,2538.0,0.2105]
[1746927912319,9.19391791,2538.6,2537.9,2.933]
[1746927912506,11.93924852,2538.6,2537.8,2.933]
[1746927912708,3.93997002,2538.1,2537.8,2.933]
[1746927913032,8.0,2538.6,2537.8,2.933]
[1746927913033,11.58586623,2538.4,2537.8,2.933]
[1746927913245,8.0,2538.2,2537.8,2.933]
[1746927913399,11.93989163,2538.2,2537.8,2.933]
[1746927913598,8.0,2538.2,2537.8,2.933]
[1746927914222,8.0,2538.2,2537.8,3.24735]
[1746927914420,8.0,2538.2,2537.8,2.933]
[1746927914697,8.0,2538.6,2537.8,2.933]
[1746927914898,0.28812208,2539.0,2538.0,0.2105]
[1746927915137,3.9388067,2538.9,2538.0,0.2105]
[1746927915298,3.58586623,2539.1,2538.0,0.2105]
[1746927915499,8.0,2538.7,2538.0,0.2105]
[1746927915726,3.93926401,2538.6,2538.0,0.2105]
[1746927915898,8.0,2538.7,2538.0,0.2105]
[1746927916342,2.939,2538.6,2538.0,0.2105]
[1746927916548,8.0,2538.7,2538.0,0.2105]
[1746927916745,9.32470401,2538.7,2538.0,0.2105]
[1746927916944,3.9396321,2538.4,2538.0,0.2105]
[1746927917249,3.93939645,2538.5,2538.0,0.2105]
[1746927917551,9.32470401,2538.7,2538.0,0.2105]
[1746927917764,3.93988342,2538.2,2537.8,2.933]
[1746927917910,3.93974356,2538.3,2537.8,2.933]
[1746927918106,3.9398951,2538.2,2537.8,2.933]
[1746927918336,0.55,2538.5,2537.8,2.933]
[1746927918558,3.93980037,2538.2,2537.8,2.933]
[1746927918847,3.9395151,2538.4,2537.8,2.933]
[1746927919070,1.08371166,2539.0,2537.9,0.03940329]
[1746927919281,3.93986947,2538.2,2537.6,0.2105]
[1746927919448,8.0,2538.6,2537.7,2.934]
[1746927919631,1.08371166,2539.0,2537.8,0.2499023]
[1746927919835,3.93892807,2538.8,2537.8,0.52889023]
[1746927920072,2.952,2538.9,2537.8,8.52889023]
[1746927920235,2.952,2538.9,2537.9,0.2105]
[1746927920436,3.7351,2539.4,2538.0,0.24989224]
[1746927920668,0.7821,2539.8,2538.3,0.2105]
[1746927920867,0.7821,2540.1,2538.7,0.55]
[1746927921032,0.29818066,2540.1,2538.9,0.55]
[1746927921236,3.58586623,2540.6,2538.9,0.55]
[1746927921237,3.58586623,2540.6,2539.2,0.2105]
[1746927921471,3.9364229,2540.4,2539.4,0.2105]
[1746927921777,2.957,2540.8,2539.5,0.03936913]
[1746927922083,2.957,2540.8,2539.7,8.2105]
[1746927922084,3.98428081,2540.8,2539.7,8.2105]
[1746927922250,3.25178419,2540.8,2539.8,0.03936728]
[1746927922570,3.93510306,2541.3,2539.9,0.2105]
[1746927922775,3.58586623,2541.3,2540.1,0.2105]
[1746927922978,3.58586623,2541.3,2540.2,2.934]
[1746927922979,3.93574479,2540.9,2540.2,2.934]
[1746927923177,3.8875515,2541.3,2540.2,3.24845]
[1746927923476,3.93530691,2541.1,2540.3,0.03936305]
[1746927923677,3.93530691,2541.1,2540.2,3.24845]
[1746927923877,3.93530691,2541.1,2540.3,0.03935862]
[1746927924089,3.58586623,2540.9,2540.1,0.2105]
[1746927924239,3.93652601,2540.4,2540.1,0.2105]
[1746927924434,3.93700787,2540.0,2539.9,2.934]
[1746927925147,3.93700787,2540.0,2539.4,17.3185]
[1746927925550,3.93689641,2540.1,2539.4,17.3185]
[1746927925749,7.5226328,2540.2,2539.4,17.3185]
[1746927925952,3.58586623,2540.2,2539.4,19.05035]
[1746927926285,4.3083865,2541.5,2539.4,19.05035]
[1746927926286,3.58586623,2541.0,2539.7,0.55]
[1746927926452,2.953,2541.2,2539.9,8.0]
[1746927926775,6.88824027,2541.2,2540.1,8.0]
[1746927926980,3.93573868,2540.9,2540.1,1.11838605]
[1746927927273,2.953,2541.2,2540.3,0.2105]
[1746927927473,3.93576805,2540.9,2540.3,0.2105]
[1746927927690,3.93602798,2540.7,2540.3,0.2105]
[1746927927980,3.93542962,2541.1,2540.3,0.2105]
[1746927928144,3.93558273,2541.0,2540.3,0.2105]
[1746927928695,1.07759811,2541.1,2540.3,0.2105]
[1746927929178,3.93576579,2540.9,2540.3,0.2105]
[1746927929378,3.93545848,2541.0,2540.3,0.2105]
[1746927929578,3.93594398,2540.7,2540.0,3.1445]
[1746927929771,0.75218102,2540.7,2540.0,3.1445]
[1746927929968,3.93576826,2540.8,2540.0,3.1445]
[1746927930171,3.93623305,2540.5,2540.0,3.1445]
[1746927930345,4.39126623,2540.6,2539.4,15.90585]
[1746927930547,3.93694501,2540.1,2539.5,3.1435]
[1746927930744,3.58586623,2540.3,2539.5,3.1435]
[1746927930949,7.68850218,2540.6,2539.5,0.2105]
[1746927930950,3.93725491,2539.9,2539.5,0.2105]
[1746927931151,7.5228783,2540.0,2539.5,0.2105]
[1746927931593,7.52247988,2540.3,2539.5,0.2105]
[1746927931804,8.0,2540.5,2539.5,0.2105]
[1746927931972,3.93679786,2540.2,2539.5,0.2105]
[1746927932175,0.16540123,2540.4,2539.6,0.03937418]
[1746927932483,3.93561729,2540.9,2539.7,8.0]
[1746927932684,0.16665034,2540.8,2539.8,0.24986458]
[1746927933107,0.16665034,2540.8,2539.8,0.2105]
[1746927933262,0.16665034,2540.8,2539.8,1.32485]
[1746927933465,2.95,2541.1,2539.8,1.32485]
[1746927933466,10.47122101,2541.1,2539.8,1.32485]
[1746927933666,0.15432421,2541.0,2539.9,14.67]
[1746927933867,10.0,2542.5,2540.7,0.2105]
[1746927933868,0.8054,2542.3,2540.7,0.2105]
[1746927934070,12.95,2542.5,2541.0,0.2105]
[1746927934279,0.1182371,2542.4,2541.3,0.2105]
[1746927934505,0.1182371,2542.4,2541.4,2.933]
[1746927934685,0.1182371,2542.4,2541.3,0.2105]
[1746927934869,0.1182371,2542.4,2541.4,2.97234601]
[1746927935071,3.58586623,2542.1,2541.4,2.933]
[1746927935407,0.47557617,2542.0,2541.4,2.933]
[1746927935774,4.40964031,2542.0,2541.4,2.933]
[1746927935969,0.11698955,2542.0,2541.4,2.972346]
[1746927936187,0.30103985,2542.6,2541.5,0.2105]
[1746927936407,0.11854892,2542.5,2541.5,0.2105]
[1746927937116,0.11854892,2542.5,2541.7,0.2105]
[1746927937412,2.954,2542.7,2541.8,0.0393355]
[1746927937718,0.11886072,2542.6,2541.8,0.0393355]
[1746927937877,0.11886072,2542.6,2541.8,1.15931905]
[1746927938206,0.11854892,2542.5,2541.8,1.15931905]
[1746927938414,0.25,2543.0,2541.9,0.2105]
[1746927938570,0.10995824,2542.9,2542.0,2.932]
[1746927938779,4.04261333,2542.9,2542.0,2.932]
[1746927939023,0.10995824,2542.9,2542.0,3.35824835]
[1746927939424,3.93270517,2542.8,2542.0,3.35824835]